Workbook

Sheet Podstawowe informacje
A1: 2.37
A2: AK2a | E2: Podstawowe informacje o działalności gospodarczej | AX2: 1
AX3: 1
B4: Nazwa Wnioskodawcy | I4: Uniwersytet Technologiczno-Przyrodniczy | AX4: 1
B5: WSZYSTKIE KWOTY W TYS. | AX5: 1
AX6: 1
B7: DANE ADRESOWE | AX7: 1
AX8: 1
B9: REGON | I9: 000001689 | X9: NIP | AE9: 554-031-31-07 | AX9: 1
AX10: 1
B11: Forma prawna | I11: SZKOŁA LUB PLACÓWKA NIEPUBLICZNA | AX11: 1
AX12: 1
B13: Osoba kontaktowa | I13: Renata Zalewska | X13: Stanowisko | AE13: Kwestor | AX13: 1
AX14: 1
B15: Nr telefonu (kom) | X15: Nr telefonu (biuro) | AE15: 52 379 17 91 | AX15: 1
AX16: 1
B17: Adres e-mail | I17: renata.zalewska@utp.edu.pl | X17: Strona www | Z17: Strona www | AE17: www.utp.edu.pl | AX17: 1
AX18: 1
B19: Adres siedziby | AX19: 1
AX20: 1
B21: Ulica | I21: Kordeckiego | X21: Numer | AE21: 20 | AI21: Lokal | AX21: 1
AX22: 1
B23: Miejscowość | I23: Bydgoszcz | X23: Kod pocztowy | AE23: 85-225 | AI23: Województwo | AN23: kujawsko-pomorskie | AX23: 1
AX24: 1
B25: Miejsce prowadzenia działalności | AX25: 1
AX26: 1
I27: Miasto | T27: Zakres prowadzonej działalności | AE27: Czy nieruchomość jest własnością Wnioskodawcy? | AX27: 1
AX28: 1
AX29: 1
AX30: 1
B31: PODSTAWOWE INFORMACJE | AX31: 1
AX32: 1
B33: Krótki opis prowadzonej działalności | I33: Podstawowym przedmiotem działalności Uczelni jest kształcenie studentów oraz prowadzenie prac naukowo-badawczych | AX33: 1
AX34: 1
AX35: 1
AX36: 1
B37: Miesiąc i rok rozpoczęcia działalności (rrrr-mm) | I37: 1951-09-01 | P37: Liczba pracowników w przeliczeniu na pełne etaty | AE37: Jaka część (w %)kapitału podstawowego Wnioskodawcy została wniesiona aportem? | AX37: 1
AX38: 1
B39: Kod PKD działalności wg PKD 2007 (zgodnie z REGON) | AX39: 1
AX40: 1
B41: Proszę podać rozkład przychodów Wnioskodawcy na poszczególne produkty lub usługi (kategorie obejmujące co najmniej 10% przychodu lub pięć największych) | AX41: 1
B42: Produkt, towar lub usługa | AM42: Procent przychodu w ostatnim roku obrotowym | AX42: 1
B43: Uczelnia jest jednostką usługową świadczącą usługi w zakrersie kształcenia studentów oraz prowadzenia prac naukowo-badawczych | AX43: 1
AX44: 1
B45: Proszę podać informacje o udziałowcach/akcjonariuszach Wnioskodawcy posiadających 5% lub więcej udziałów/akcji lub pięciu największych | AX45: 1
B46: Imię i Nazwisko/Nazwa | X46: Forma prawna | AI46: % udziałów /akcji | AM46: PESEL lub REGON | AX46: 1
AX47: 1
AX48: 1
B49: Proszę podać skład Zarządu Wnioskodawcy | AX49: 1
B50: Imię i nazwisko | X50: PESEL | AF50: Liczba lat na obecnym stanowisku | AM50: Doświadczenie w obszarze działalności Wnioskodawcy (liczba lat) | AX50: 1
AX51: 1
X53: Imię i nazwisko | AF53: Liczba lat na obecnym stanowisku | AM53: Doświadczenie w obszarze działalności Wnioskodawcy (liczba lat) | AX53: 1
B54: Dyrektor finansowy/główny księgowy
B56: Podmioty powiązane organizacyjnie* | AX56: 1
B57: Imię i Nazwisko/Nazwa | X57: PESEL lub REGON | AF57: Opis powiązania | AX57: 1
B58: Rolniczy Zakład Doświadczalny w Minikowie | AX58: 1
AX59: 1
B60: * a) kontrola nad podmiotem poprzez członków zarządu, akcjonariusza większościowego lub małżonka akcjonariusza większościowego bez rozdzielności majątkowej, b) mniejszościowy udział w zarządzaniu podmiotem poprzez członków zarządu lub prokurentów | AX60: 1
AX61: 1
B62: Podmioty powiązane kapitałowo - udziały Wnioskodawcy w innych podmiotach | AX62: 1
B63: Imię i Nazwisko/Nazwa | X63: PESEL lub REGON | AF63: % udziałów | AX63: 1
B64: Spółdzielnia Mleczarska MLEKPOL w Grajewie | X64: 000827780 | AF64: 0.02 | AX64: 1
AX65: 1
B66: Jaki jest zasięg terytorialny sprzedaży Wnioskodawcy? | Q66: Udział % | X66: Kwartał | AE66: I | AI66: II | AM66: III | AQ66: IV | AX66: 1
B67: przychody w ramach jednego powiatu | X67: % rocznych przychodów w kwartale
B68: przychody krajowe spoza jednego powiatu, ale w ramach obszaru jednego województwa | AX68: 1
B69: przychody krajowe z obszaru przekraczającego terytorium jednego województwa | AX69: 1
B70: przychody z działalności zagranicznej | AX70: 1
AX71: 1
B72: Jaki procent zakupów Wnioskodawcy stanowi import? | AX72: 1
AX73: 1
B74: Proszę podać dane 5 największych dostawców i odbiorców (informacje za ostatni rok obrotowy) | AX74: 1
B75: Nazwa | M75: Adres | X75: Okres współpracy (w m-cach) | AF75: % sprzedaży | AJ75: Kwota sprzedaży | AP75: Terminy płatności (w dniach) | AX75: 1
B76: Bydgoska Telewizja Kablowa GAWEX Sp. jawna | M76: ul. Porazińskiej 4, 85-791 Bydgoszcz | X76: 12 | AF76: =AJ76/128554.3*100 -> 0.23 | AJ76: 294.82 | AP76: do 25 każdego bieżącego miesiąca | AX76: 1
B77: 3GNS Sp. z o.o. | M77: ul. Taśmowa 7, 02-677 Warszawa | X77: 12 | AF77: =AJ77/128554.3*100 -> 0.30 | AJ77: 392.06 | AP77: 30 dni od daty odbioru faktury | AX77: 1
B78: Alfa Składaniec s.c. | M78: ul. Kaliskiego 7, 85-789 Bydgoszcz | X78: 12 | AF78: 0.14 | AJ78: 175.91 | AP78: do 25 każdego bieżącego miesiąca | AX78: 1
B79: AWACOM Sp. z o.o. | M79: ul. 16 Pułku Ułanów Wlkp. 1, 85-319 Bydgoszcz | X79: 12 | AF79: 0.31 | AJ79: 403.25 | AP79: do 10 następnego miesiąca | AX79: 1
B80: Zakład Usług Gastronomicznych W. Lewicki | M80: ul. Gen. Andersa 1, 85-796 Bydgoszcz | X80: 12 | AF80: 0.18 | AJ80: 233.01 | AP80: 14 dni od daty wystawienia faktury | AX80: 1
AX81: 1
B82: Nazwa | M82: Adres | X82: Okres współpracy (w m-cach) | AF82: % zakupów | AJ82: Kwota zakupów | AP82: Terminy płatności (w dniach) | AX82: 1
B83: Komunalne Przedsiębiorstwo Energetyki Cieplnej Sp. z o.o. | M83: Ks. Józefa Schulza 5, 85-315 Bydgoszcz | X83: 12 | AF83: =AJ83/124666.1*100 -> 2.26 | AJ83: 2,821.53 | AP83: 14 dni od daty wystawienia faktury | AX83: 1
B84: EKOTRADE Sp. z o.o. | M84: ul. Fabryczna 11, 85-741 Bydgoszcz | X84: 12 | AF84: =AJ84/124666.1*100 -> 0.68 | AJ84: 848.40 | AP84: 14 dni od daty wystawienia faktury | AX84: 1
B85: Instytut Chemii Bioorganicznej PAN | M85: ul. Z. Noskowskiego 12/14, 61-704 Poznań | X85: 12 | AF85: 0.44 | AJ85: 553.68 | AP85: 14 dni od daty wystawienia faktury | AX85: 1
B86: Miejskie Wodociągi i Kanalizacja Sp. z o.o. | M86: ul. Toruńska 103, 85-950 Bydgoszcz | X86: 12 | AF86: 0.71 | AJ86: 884.18 | AP86: 14 dni od daty wystawienia faktury | AX86: 1
B87: Spółdzielnia Pracy Inventus | M87: ul. Grudziądzka 5, 85-130 Bydgoszcz | X87: 12 | AF87: 1.43 | AJ87: 1,786.44 | AP87: 14 dni od daty wystawienia faktury | AX87: 1
AX88: 1
B89: Wymagane koncesje i zezwolenia | AX89: 1
B90: Koncesja/zezwolenie | X90: Czy aktualnie posiadana/e? | AF90: Data ważności (dd-mm-rrrr) | AX90: 1
B91: Nie jest wymagane | AX91: 1
AX92: 1
AX93: 1
B94: STRUKTURA WIEKOWA NALEŻNOŚCI I ZOBOWIĄZAŃ HANDLOWYCH | AX94: 1
AX95: 1
M96: Stan na dzień ostatniego zamkniętego kwartału (rrrr-mm-dd) | T96: 2013-06-30 | AX96: 1
B97: Należności | M97: Zobowiązania | AX97: 1
B98: Wyszczególnienie | I98: Kwota w tys. PLN | M98: Wyszczególnienie | T98: Kwota w tys. PLN | AX98: 1
B99: Należności ogółem | I99: =28.45 -> 28.45 | M99: Zobowiązania ogółem | AX99: 1
B100: z tego : | I100: 28.45 | M100: z tego : | AX100: 1
B101: Terminowe | I101: =1126.75+165.49 -> 1,292.24 | M101: Terminowe | T101: =1494.63 -> 1,494.63 | AX101: 1
B102: Przeterminowane | M102: Przeterminowane | AX102: 1
B103: 1-30 dni | I103: =22.34+134.63+441.13 -> 598.10 | M103: 1-30 dni | T103: =217.02+95.98 -> 313.00 | AX103: 1
B104: 31-60 dni | I104: =5.11+59.99+216.14 -> 281.24 | M104: 31-60 dni | T104: =3.08+189.36 -> 192.44 | AX104: 1
B105: 61-90 dni | I105: =0.39+109.28 -> 109.67 | M105: 61-90 dni | T105: =0 -> 0.00 | AX105: 1
B106: 91-180 dni | I106: =0.61+0.13 -> 0.74 | M106: 91-180 dni | T106: =0 -> 0.00 | AX106: 1
B107: 181-360 dni | I107: =4.47 -> 4.47 | M107: 181-360 dni | T107: =3.96 -> 3.96 | AX107: 1
B108: Powyżej 360 dni | I108: =117.88 -> 117.88 | M108: Powyżej 360 dni | T108: =1.48 -> 1.48 | AX108: 1
AX109: 1
AX110: 1
B111: WSPÓŁPRACA Z INNYMI BANKAMI I INSTYTUCJAMI FINANSOWYMI | AX111: 1
AX112: 1
AA113: Min | AD113: Max | AM113: Min | AP113: Max | AX113: 0
B114: Ilość przypadków nieterminowego regulowania zobowiązań | T114: Długość trwania zaległości | AG114: Kwota zaległości | AX114: =AX113 -> 0
AX115: =AX114 -> 0
B116: Instytucje finansowe z którymi współpracuje Wnioskodawca | AX116: 1
B117: Nazwa instytucji | V117: Zakres współpracy | AX117: 1
V118: kredyty/finansowanie | AB118: rachunek | AF118: depozyt | AI118: transakcje skarbowe (FX, terminowe, pochodne) | AX118: 1
AX119: 1
B120: Czy na dzień składania wniosku Klient posiada wymagalne zaległości wobec ZUS, US, pracowników lub inne zaległe zobowiązania publiczno-prawne, a w przypadku realizowanego postępowania układowego z tytułu ww. zaległych zobowiązań publiczno-prawnych, nie realizuje terminowo tego zadłużenia? | AX120: 1
AX121: 1
AX122: 1
B123: PODPISY | AX123: 1
B124: Wiarygodność powyższych danych oraz ich zgodność ze stanem faktycznym i prawnym potwierdzam własnoręcznym podpisem. | AX124: 1
AX125: 1
AX126: 1
AX127: 1
AX128: 1
AX129: 1
B130: ________________________________________________ | AX130: 1
B131: Stempel Wnioskodawcy i podpisy osób upoważnionych | AM131: Miejscowość, data | AX131: 1
AX132: 1
AX133: 1
A140: Wojewodztwa
A141: dolnośląskie
A142: kujawsko-pomorskie
A143: lubelskie
A144: lubuskie
A145: łódzkie
A146: małopolskie
A147: mazowieckie
A148: opolskie
A149: podkarpackie
A150: podlaskie
A151: pomorskie
A152: śląskie
A153: świętokrzyskie
A154: warmińsko-mazurskie
A155: wielkopolskie
A156: zachodniopomorskie
A165: Formy prawne
A166: OSOBA FIZYCZNA PROWADZĄCA DZIAŁALNOŚĆ GOSPODARCZĄ
A167: SPÓŁKA CYWILNA
A168: SPÓŁKA JAWNA
A169: SPÓŁKA PARTNERSKA
A170: SPÓŁKA KOMANDYTOWA
A171: SPÓŁKA KOMANDYTOWO-AKCYJNA
A172: SPÓŁKA Z OGRANICZONĄ ODPOWIEDZIALNOŚCIĄ
A173: SPÓŁKA AKCYJNA
A174: FUNDACJA
A175: FUNDUSZ
A176: FUNDUSZ CELOWY
A177: GOSPODARSTWO POMOCNICZE JEDNOSTKI BUDŻETOWEJ
A178: INNY KOŚCIÓŁ LUB ZWIĄZEK WYZNANIOWY
A179: INSTYTUCJA KULTURY
A180: JEDNOSTKA PAŃSTWOWA LUB ZAKŁAD BUDŻETOWY
A181: KASA CHORYCH
A182: KLUB SPORTOWY
A183: KOMENDA POWIATOWA (MIEJSKA) POLICJI
A184: KOMORNIK
A185: KOŚCIÓŁ KATOLICKI LUB JEDNOSTKA ORGANIZACYJNA KOŚCIOŁA KATOLICKIEGO
A186: NOTARIAT
A187: ODDZIAŁ FIRMY ZAGRANICZNEJ W POLSCE
A188: ORGANIZACJA SPOŁECZNA
A189: ORGANIZACJA ZAWODOWA
A190: OSOBA FIZYCZNA PROWADZĄCA DZIAŁALNOŚĆ WYTWÓRCZĄ W ROLNICTWIE
A191: PARTIA POLITYCZNA
A192: POWIATOWA (MIEJSKA) KOMENDA PAŃSTWOWEJ STRAŻY POŻARNEJ
A193: POWIATOWA INSPEKCJA BUDOWLANA
A194: POWIATOWA INSPEKCJA SANITARNA
A195: POWIATOWA INSPEKCJA WETERYNARYJNA
A196: PRZEDSTAWICIELSTWO DYPLOMATYCZNE, KONSULARNE, MISJA SPECJALNA PAŃSTWA OBCEGO
A197: PRZEDSTAWICIELSTWO FIRMY ZAGRANICZNEJ W POLSCE
A198: SAMORZĄD GOSPODARCZY I ZAWODOWY
A199: SPÓŁDZIELNIA
A200: SPÓŁKA AKCYJNA W ORGANIZACJI
A201: SPÓŁKA Z OGRANICZONĄ ODPOWIEDZIALNOŚCIĄ W ORGANIZACJI
A202: SPZOZ
A203: ŚRODKI SPECJALNE JEDNOSTKI BUDŻETOWEJ
A204: STOWARZYSZENIE
A205: SZKOŁA LUB PLACÓWKA NIEPUBLICZNA
A206: WOJEWÓDZKI FUNDUSZ OCHRONY ŚRODOWISKA I GOSPODARKI WODNEJ
A207: WSPÓLNOTA MIESZKANIOWA
A208: ZWIĄZEK SAMORZĄDOWY LUB ZWIĄZEK MIĘDZY SAMORZĄDAMI
A213: Działalność
A214: zakład produkcyjny
A215: magazyn
A216: punkt sprzedaży
A217: biuro handlowe
A218: inne
A221: 01.11 Uprawa zbóż, roślin strączkowych i roślin oleistych na nasiona, z wyłączeniem ryżu
A222: 01.12 Uprawa ryżu
... 652 more rows

Sheet Zaangażowania kredytowe
A1: AK2b
D2: ZAANGAŻOWANIA KREDYTOWE POZA BGK
B4: Nazwa Wnioskodawcy | D4: UTP
B6: Proszę podać zaanagażowania Wnioskodawcy wobec innych podmiotów niż BGK
B7: Lp | C7: Nazwa podmiotu | D7: Tytuł długu | G7: Kwota ekspozycji wg umowy | I7: Waluta | J7: Data zawarcia umowy (dd-mm-rrrr) | L7: Data całkowitej spłaty (dd-mm-rrrr) | N7: Zabezpieczenia: | R7: Zaangażowanie na dzień sporządzania zestawienia | V7: Łączna spłata kapitału w roku poprzedzającym rok poprzedni | W7: Łączna spłata kapitału w roku poprzednim | X7: Łączna spłata kapitału w roku bieżącym | Y7: Łączne spłaty kapitału w kolejnych latach kredytowania
N8: Rodzaj | Q8: Kwota | R8: bilansowe | S8: pozabilansowe | T8: w tym przeterminowane:
T9: Kapitał | U9: Odsetki
B10: 1 | C10: Bank Pekao S.A. | D10: Kredyt odnawialny | G10: 7000 | I10: PLN | J10: 30-07-2012 | L10: 31-01-2014 | N10: weksel in blanco | Q10: =10000+10000 -> 20000 | R10: 7000
B11: 2 | C11: WFOŚiGW | D11: Pożyczka nr PB06067 | G11: 2500 | I11: PLN | J11: 28-09-2006 | L11: 30-06-2018 | N11: hipoteka na nieruchomości (KW nr BY1B/00034544/9) | Q11: 2500 | R11: 1250 | W11: 250 | X11: 250
B12: 3 | C12: WFOŚiGW | D12: Pożyczka nr PB11044 | G12: 654.88 | I12: PLN | J12: 21-11-2011 | L12: 31-07-2018 | N12: weksel in blanco, oświdczenie o poddaniu się egzekucji | Q12: 980 | R12: 573.03 | W12: 109.14 | X12: 109.14
B13: 4 | C13: WFOŚiGW | D13: Pożyczka nr PB11002 | G13: 356.27 | I13: PLN | J13: 07-06-2011 | L13: 28-02-2018 | N13: hipoteka wraz z cesją z polisy ubezp. , weksel in blanco, oświdczenie o poddaniu się egzekucji | Q13: =190+360 -> 550 | R13: 282.05 | W13: 59.38 | X13: 59.38
B14: 5 | C14: Europejski Fundusz Leasingowy | D14: Umowa Leasingu nr 20210/B/11 | G14: 81.05 | I14: PLN | J14: 08-08-2011 | L14: 08-08-2016 | R14: 48.14 | W14: 12.89 | X14: 13.96
B15: 6 | C15: VolkswagenLeasing Polska Sp. z o.o. | D15: Umowa Leasingu nr 6193189-1213-00432 | G15: 93.84 | I15: PLN | J15: 31-01-2013 | L15: 30-12-2017 | R15: 71.02 | X15: 29.71
B17: Czy wszystkie powyższe zaangażowania były w ciągu ostatnich 12 miesięcy obsługiwane terminowo? | N17: TAK
B18: Jeśli nie, proszę wypełnić poniższą tabelę
B20: Numer z tabeli powyżej | D20: Ilość opóźnień | E20: Maksymalny okres opóźnienia (w dniach) | H20: Maksymalna kwota opóźnienia | K20: Czy aktualnie uregulowane?
A23: Zestawienie terminowych transakcji skarbowych zawartych z innymi podmiotami*
A24: (w pełnych kwotach nominalnych danej waluty, w poszczególnych kwartałach kalendarzowych)
B25: Czynne transakcje skarbowe
B26: Nazwa podmiotu | D26: Strona zabezpieczan (import/export) | E26: Nazwa transakcji | G26: Łączna kwota transakcji | H26: Waluta transakcji | I26: Transakcja otwarta / zamknięta | K26: Bieżąca wycena / Nierozliczona kwota zamkniętych transakcji | M26: Kurs wyceny | N26: Rodzaj zabezpieczenia transakcji, np.: depozyt zabezpieczający, limit skarbowy | R26: Dodatkowe warunki modyfikujące profil wypłaty, np. bariery w opcjach walutowych | U26: Skumulowany nominał transakcji zapadających w bieżącym kwartale Q | V26: Skumulowany nominał transakcji w kwartale Q+1 | W26: Skumulowany nominał transakcji w kwartale Q+2 | X26: Skumulowany nominał transakcji w kwartale Q+3 | Y26: Skumulowany nominał transakcji w kwartale Q+4
B28: * należy podać jedynie aktywne transakcje terminowe oraz transakcje terminowe i kasowe (w tym transakcje wymiany walut) zamknięte, jednak nierozliczone (istniejące zobowiązanie np. w wyniku zamknięcia transakcji opcyjnej) albo odpowiednio nierozliczone w terminie.
B29: Proszę podać informacje o posiadanych limitach skarbowych
B30: Nazwa podmiotu | D30: Kwota limitu | E30: Waluta limitu | F30: Data ważności limitu (dd-mm-rrrr) | H30: Typy transakcji dostępne w ramach limitu | S30: Maksymalne dostępne kwoty dla poszczególnych typów transakcji | V30: Typ zabezpieczenia | Y30: Wartość zabezpieczenia
B35: PODPISY
B39: Stempel Wnioskodawcy i podpisy osób upoważnionych | V39: Miejscowość, data
